bitfinex-derivatives/quotes_ETHF0:USTF0_20251118
["timestamp","ask_amount","ask_price","bid_price","bid_amount"]
[1763441471359,0.1568,2987.6,2984.6,3.84967175]
[1763441471755,3.00698231,2987.6,2984.0,0.00738249]
[1763441471960,0.74095375,2987.5,2984.0,2.8575648]
[1763441472263,0.16074703,2986.5,2984.1,3.71709783]
[1763441472455,0.16074703,2986.5,2984.0,0.00738249]
[1763441472761,2.85018231,2986.4,2984.0,0.00738249]
[1763441472959,0.1568,2984.3,2982.3,2.85018231]
[1763441473174,0.1568,2984.3,2982.0,2.85018231]
[1763441473468,0.1568,2982.0,2981.8,2.19371198]
[1763441473669,2.85018231,2982.7,2979.6,0.1631]
[1763441473858,0.1568,2982.0,2979.6,0.1631]
[1763441474170,0.00500575,2981.4,2980.9,0.00502562]
[1763441475670,0.00408054,2982.7,2980.9,0.00502562]
[1763441476472,0.96770737,2982.6,2980.9,0.00502562]
[1763441476669,0.00408054,2982.7,2980.9,0.00502562]
[1763441477573,2.85018231,2982.3,2979.6,0.00299534]
[1763441478074,2.85018231,2981.9,2979.7,3.83685091]
[1763441478370,2.85018231,2981.9,2979.6,0.00299534]
[1763441478672,2.85018231,2981.9,2980.5,2.562e-05]
[1763441478673,0.1568,2980.8,2980.5,2.562e-05]
[1763441478874,0.1568,2980.8,2979.6,0.00299534]
[1763441479662,0.96770737,2980.7,2979.6,0.00299534]
[1763441480074,2.85018231,2980.6,2977.3,2.85018231]
[1763441480473,2.85018231,2980.6,2977.9,3.85167695]
[1763441480674,2.85018231,2980.6,2977.3,2.85018231]
[1763441480675,2.85018231,2979.9,2977.2,0.1631]
[1763441480872,2.85018231,2979.3,2977.2,0.1631]
[1763441481077,2.85372938,2979.3,2977.2,0.00414279]
[1763441481272,0.00503432,2978.5,2978.0,0.00503432]
[1763441482471,0.1742,2978.4,2977.2,0.00414279]
[1763441483679,0.00503432,2978.5,2977.2,0.00414279]
[1763441483680,0.00503432,2978.5,2977.5,0.00503432]
[1763441485475,0.00503432,2978.5,2977.2,0.00414279]
[1763441485476,3.81788968,2978.4,2977.2,0.00414279]
[1763441486082,2.85018231,2978.4,2977.2,0.00414279]
[1763441486484,0.00503432,2978.5,2977.5,0.00503432]
[1763441486982,0.96770737,2978.3,2977.5,0.00503432]
[1763441487183,0.00503432,2978.5,2977.5,0.00503432]
[1763441488781,0.00354707,2979.3,2977.7,0.1649]
[1763441488982,0.1568,2980.8,2978.1,2.85018231]
[1763441489488,0.1568,2980.8,2978.2,3.49834342]
[1763441489783,0.00503432,2979.8,2979.2,0.00503432]
[1763441490086,0.00744066,2979.8,2979.2,0.00503432]
[1763441492189,2.85018231,2981.7,2979.3,6.0]
[1763441492389,2.85018231,2981.7,2979.2,0.00503432]
[1763441492584,3.81788968,2981.9,2979.2,0.00503432]
[1763441492782,2.85018231,2981.9,2979.2,0.00503432]
[1763441493092,0.00503432,2980.8,2979.2,0.00826506]
[1763441499394,2.38267866,2980.3,2979.2,0.00826506]
[1763441499586,0.1169,2980.0,2977.7,0.1649]
[1763441499894,2.38267866,2979.7,2977.7,0.1649]
[1763441500188,0.1709,2981.0,2977.7,0.1649]
[1763441500398,2.38267866,2980.8,2977.8,3.86305374]
[1763441500890,0.00503432,2979.6,2979.0,0.16993432]
[1763441501093,0.00394739,2980.8,2979.0,0.16993432]
[1763441501993,0.00503432,2980.2,2979.0,0.16993432]
[1763441502293,0.00503432,2980.2,2979.0,0.00503432]
[1763441502484,0.00503432,2980.2,2979.0,0.16993432]
[1763441504387,0.00503432,2980.2,2979.0,0.00503432]
[1763441507605,2.38267866,2979.1,2977.8,0.00360774]
[1763441507792,2.38267866,2978.8,2976.8,1.79784354]
[1763441507990,1.1745649,2978.6,2976.6,0.1649]
[1763441508295,0.1414,2979.0,2976.7,3.88508425]
[1763441508491,1.1745649,2978.9,2976.7,3.88508425]
[1763441508698,0.1414,2979.0,2976.6,0.1649]
[1763441508699,1.1745649,2978.7,2976.6,0.1649]
[1763441509005,0.00503432,2977.9,2977.4,0.00503432]
[1763441511601,0.75533106,2977.9,2977.4,0.00503432]
[1763441511904,0.75029674,2977.8,2977.4,0.00503432]
[1763441512107,0.00503432,2977.9,2977.4,0.00503432]
[1763441512309,0.00503432,2977.9,2976.6,0.00303829]
[1763441513308,0.00503432,2977.9,2977.0,0.00503432]
[1763441513710,1.17959922,2977.9,2977.0,0.00503432]
[1763441513909,2.38713043,2977.4,2977.0,0.00503432]
[1763441514108,0.74967929,2977.3,2977.0,0.00503432]
[1763441514815,3.56169533,2977.1,2974.0,4.18497397]
[1763441515011,0.1709,2976.3,2973.6,0.1649]
[1763441515202,0.1709,2976.3,2973.1,1.969733]
[1763441515203,2.38713043,2974.5,2973.1,1.969733]
[1763441515405,0.7405385,2974.4,2972.2,2.38713043]
[1763441515605,2.38713043,2974.7,2972.2,2.38713043]
[1763441515904,0.00504404,2974.0,2973.4,0.00338577]
[1763441516607,0.00367071,2974.7,2974.0,0.1649]
[1763441516910,1.16663394,2976.2,2974.0,0.1649]
[1763441517099,0.79159718,2976.1,2974.2,2.38713043]
[1763441517306,2.34143396,2976.9,2974.0,0.1649]
[1763441517307,1.16663394,2977.2,2974.7,2.38713043]
[1763441517509,1.95791691,2977.2,2974.7,2.38713043]
[1763441517708,0.00504404,2976.2,2975.7,0.00504404]
[1763441517911,0.00504404,2976.2,2975.7,0.00848253]
[1763441517912,0.00747136,2976.2,2975.7,0.00848253]
[1763441522519,1.16663394,2977.5,2975.7,0.00848253]
[1763441522710,2.38713043,2978.4,2977.0,0.1766]
[1763441522906,0.79027331,2978.3,2977.0,0.1766]
[1763441523109,2.38713043,2977.9,2975.7,0.00343849]
[1763441523410,3.55376437,2977.4,2975.7,0.00343849]
[1763441523612,0.00504404,2976.8,2976.3,0.00504404]
[1763441523817,0.79509409,2976.8,2975.7,0.00343849]
[1763441524503,0.00504404,2976.8,2975.7,0.00343849]
[1763441524705,2.38713043,2976.4,2975.0,0.1766]
[1763441524909,0.7900186,2976.3,2975.0,0.1766]
[1763441525104,2.38713043,2975.9,2975.0,0.1766]
[1763441525411,2.38713043,2975.1,2973.0,0.1766]
[1763441525614,0.96770737,2976.2,2973.0,0.1766]
[1763441525615,2.38713043,2974.9,2973.0,0.1766]
[1763441525812,0.00504404,2974.7,2974.0,0.00278078]
[1763441526012,0.00504404,2974.7,2974.0,0.17938078]
[1763441526411,1.16663394,2975.8,2975.5,0.1766]
[1763441526614,6.62671319,2976.7,2975.5,0.1766]
[1763441526814,2.38713043,2977.7,2976.6,0.1766]
[1763441527021,2.38713043,2977.2,2976.6,0.1766]
[1763441527318,2.38713043,2977.2,2975.5,0.1766]
[1763441527517,0.00504404,2976.6,2976.1,0.00504403]
[1763441528818,0.00359626,2977.2,2976.6,0.1766]
[1763441529909,0.0086403,2977.2,2976.6,0.1766]
[1763441530411,2.38713043,2978.6,2976.6,0.1766]
[1763441530916,2.38713043,2978.1,2976.6,0.1766]
[1763441531113,2.38713043,2977.6,2976.6,0.1766]
[1763441531325,0.00504404,2977.4,2976.8,0.00504404]
[1763441531511,2.38713043,2977.1,2975.5,0.1796086]
[1763441531815,2.38713043,2976.0,2975.5,0.1796086]
[1763441532117,2.38713043,2976.2,2974.0,0.1766]
[1763441532625,0.00504404,2975.4,2974.8,0.00504404]
[1763441533009,0.0078314,2975.4,2974.8,0.00780335]
[1763441533924,0.0078314,2975.4,2974.0,0.1766]
[1763441534430,1.72378264,2976.7,2974.5,2.38713043]
[1763441534616,1.72378264,2977.6,2975.0,2.38713043]
[1763441534815,2.38713043,2977.4,2974.6,3.67669976]
[1763441535011,2.38713043,2976.9,2974.0,0.1766]
[1763441535513,0.00504404,2975.7,2975.5,0.1766]
[1763441535910,0.00380729,2976.9,2975.5,0.1766]
[1763441536223,2.39093772,2976.9,2975.5,0.1766]
[1763441536925,2.38713043,2976.4,2975.5,0.1766]
[1763441537126,0.00504404,2976.5,2975.5,0.1766]
[1763441539031,2.39093772,2976.9,2976.6,0.1769]
[1763441539032,0.00380729,2976.9,2976.6,0.1769]
[1763441539323,0.00380729,2976.9,2976.6,0.17932863]
[1763441539526,1.72378264,2978.0,2976.6,0.17932863]
[1763441539916,1.72378264,2978.1,2976.6,0.17932863]
[1763441540125,1.72378264,2978.7,2977.7,0.1769]
[1763441540424,1.72378264,2978.7,2977.1,0.00504404]
[1763441540425,2.38713043,2978.2,2977.1,0.00504404]
[1763441540922,1.72378264,2978.1,2977.1,0.00504404]
[1763441541917,2.38713043,2977.7,2976.6,0.17932863]
[1763441542230,2.38713043,2977.2,2976.6,0.17932863]
[1763441542622,2.38713043,2977.2,2976.6,0.00242863]
[1763441543132,1.72378264,2977.2,2976.6,0.00747267]
[1763441543336,4.11091307,2976.9,2975.5,0.1766]
[1763441543626,8.795,2977.4,2975.5,0.1766]
[1763441543627,4.11091307,2976.4,2975.5,0.1766]
[1763441543835,2.38713043,2975.9,2974.4,0.1769]
[1763441544127,4.11091307,2975.4,2974.4,0.1769]
[1763441544346,1.72882668,2975.2,2974.6,0.00504404]
[1763441544634,1.72378264,2974.7,2973.3,0.1769]
[1763441544827,1.72378264,2974.6,2973.3,0.1769]
[1763441545132,1.72378264,2974.3,2973.3,0.1769]
[1763441545522,1.72378264,2975.1,2974.4,0.1769]
[1763441546019,1.72882668,2975.2,2974.4,0.1769]
[1763441546222,0.00504404,2975.2,2974.4,0.1769]
[1763441547024,2.38713043,2975.0,2974.4,0.1769]
[1763441547226,2.38713043,2975.0,2973.5,0.00504403]
[1763441547425,4.11091307,2975.0,2973.5,0.00504403]
[1763441547620,1.72378264,2974.9,2973.5,0.00504403]
[1763441547826,1.72378264,2974.8,2973.5,0.00504403]
[1763441548428,1.72378264,2974.9,2973.5,0.00504403]
[1763441548725,2.38713043,2975.0,2974.4,0.1754]
[1763441548921,2.38713043,2975.0,2973.5,0.00504403]
[1763441550424,0.00504404,2975.2,2973.5,0.00504403]
[1763441551232,0.00504404,2975.2,2974.4,0.1754]
[1763441551423,0.00504404,2975.2,2975.0,0.1754]
[1763441552436,0.00504404,2975.2,2974.4,0.1754]
[1763441552729,0.00504404,2975.2,2975.0,0.1754]
[1763441553441,0.00504404,2975.2,2974.4,0.1754]
[1763441553632,2.38713043,2975.1,2974.4,0.1754]
[1763441553936,0.78747179,2975.0,2974.4,0.1754]
[1763441554137,0.78747179,2974.9,2974.4,0.1754]
[1763441554323,0.78747179,2974.8,2974.4,0.1754]
[1763441554526,0.78747179,2974.7,2974.4,0.1754]
[1763441554740,2.39217447,2975.2,2974.4,0.1754]
[1763441554741,0.78747179,2974.6,2974.4,0.1754]
[1763441555032,0.00504404,2975.2,2975.0,0.1754]
[1763441555540,0.00504404,2975.2,2975.0,6.1754]
[1763441555834,0.00504404,2975.2,2975.0,0.1754]
[1763441557235,0.00504404,2975.2,2974.4,0.1754]
[1763441558035,0.00504404,2975.2,2975.0,0.1754]
[1763441558438,0.00504404,2975.2,2974.4,0.1754]
[1763441559344,0.00504404,2975.2,2975.0,0.1754]
[1763441559639,4.404e-05,2975.2,2975.0,0.1754]
[1763441560145,1.1686859,2976.6,2975.0,0.1754]
[1763441560442,1.1686859,2976.5,2975.0,0.1754]
[1763441560947,0.00504404,2976.0,2975.5,0.00504404]
[1763441561140,0.00894738,2976.0,2975.5,0.00757006]
[1763441562038,2.86894182,2975.7,2974.4,0.1754]
[1763441562345,1.1686859,2975.5,2974.4,0.1754]
[1763441562533,1.1686859,2975.4,2973.3,0.1769]
[1763441562932,1.1686859,2975.5,2973.7,2.86894182]
[1763441563135,0.00894738,2976.0,2974.3,0.00504403]
[1763441563538,0.00894738,2976.0,2974.5,0.1754]
[1763441564342,2.8778892,2976.0,2974.5,0.1754]
[1763441564550,1.1686859,2975.7,2974.5,0.1754]
[1763441564847,1.1686859,2975.6,2974.5,0.1754]
[1763441565249,2.8778892,2976.0,2974.5,0.1754]
[1763441565250,4.03762772,2975.5,2974.5,0.1754]
[1763441565546,1.1686859,2975.6,2974.5,0.1754]
[1763441565950,1.1686859,2975.7,2974.5,0.1754]
[1763441566243,0.00894738,2976.0,2974.5,0.1754]
[1763441567151,0.00894738,2976.0,2975.4,0.1754]
[1763441570751,1.1686859,2977.1,2975.4,0.1754]
[1763441570949,0.78997958,2977.0,2975.4,0.1754]
[1763441571246,0.78997958,2976.9,2975.4,0.1754]
[1763441571443,0.78997958,2976.8,2975.4,0.1754]
[1763441571642,0.78997958,2976.7,2975.4,0.1754]
[1763441571845,0.00504404,2976.3,2975.8,0.00504404]
[1763441572042,0.00504404,2976.3,2975.8,0.00872375]
[1763441573145,1.17372994,2976.3,2974.5,0.1754]
[1763441574049,1.96370952,2976.3,2975.1,0.00504403]
[1763441574249,0.78997958,2976.2,2975.1,0.00504403]
[1763441574642,0.78997958,2976.1,2975.1,0.00504403]
[1763441574843,0.00504404,2976.3,2975.1,0.00504403]
[1763441576747,1.17372994,2976.3,2975.1,0.00504403]
[1763441577142,1.96578597,2976.3,2975.1,0.00504403]
[1763441577348,0.79205603,2976.2,2975.1,0.00504403]
[1763441577544,0.79205603,2976.1,2975.1,0.00504403]
[1763441577745,0.79205603,2976.0,2975.1,0.00504403]
[1763441577946,0.79205603,2975.9,2975.1,0.00504403]
[1763441578145,1.1686859,2976.2,2975.1,0.00504403]
[1763441578146,0.79205603,2975.8,2975.1,0.00504403]
[1763441578346,0.79205603,2975.7,2975.1,0.00504403]
[1763441578555,0.79205603,2975.6,2975.1,0.00504403]
[1763441578746,0.79205603,2975.5,2975.1,0.00504403]
[1763441578945,0.79205603,2975.4,2974.5,0.1794218]
[1763441579249,1.1686859,2975.3,2974.5,0.1794218]
[1763441579452,0.79205603,2975.2,2974.5,0.1794218]
[1763441579652,0.79205603,2975.1,2974.5,0.1794218]
[1763441579949,0.79205603,2975.0,2974.5,0.1794218]
[1763441580151,0.79205603,2974.9,2974.5,0.1794218]
[1763441580350,0.79205603,2974.8,2973.2,2.3808283]
[1763441580548,0.00504404,2974.3,2972.9,2.3808283]
[1763441580749,0.00504404,2974.3,2972.7,5.42517012]
[1763441580943,0.00504404,2974.3,2972.7,0.1754]
[1763441581457,0.7997809,2974.3,2973.3,0.18002363]
[1763441581645,0.00772487,2974.3,2973.3,0.18002363]
[1763441583455,1.17641077,2974.3,2973.3,0.18002363]
[1763441583752,2.86894182,2974.1,2973.3,0.00312363]
[1763441583948,1.1686859,2973.8,2971.4,2.3808283]
[1763441584154,1.1686859,2973.3,2971.2,1.47182523]
[1763441584460,1.1686859,2973.0,2971.2,0.1754]
[1763441584648,0.00504404,2972.4,2971.2,0.1754]
[1763441584950,0.00504404,2972.4,2971.2,0.17859398]
[1763441585651,0.00504404,2972.4,2971.8,0.1754]
[1763441585859,1.1686859,2973.9,2971.8,0.1754]
[1763441586061,0.78956113,2973.8,2971.8,0.1754]
[1763441586354,0.78956113,2973.7,2971.8,0.1754]
[1763441586557,0.78956113,2973.6,2971.8,0.1754]
[1763441586861,2.87398586,2973.0,2972.4,0.00504404]
[1763441587055,2.86894182,2972.5,2971.2,0.17859398]
[1763441587362,0.78885349,2972.4,2971.2,0.17859398]
[1763441588048,0.78885349,2972.4,2971.2,0.00319398]
[1763441588254,0.96770737,2972.3,2971.2,0.00319398]
[1763441588454,0.78885349,2972.2,2971.2,0.00319398]
[1763441588650,0.792213,2972.2,2971.2,0.00319398]
[1763441588957,0.78885349,2972.1,2971.2,0.00319398]
[1763441589160,0.00335951,2972.2,2971.2,0.00319398]
[1763441589749,2.86894182,2972.0,2971.2,0.00319398]
[1763441590155,2.86894182,2972.0,2970.4,0.1754]
[1763441590355,0.00335951,2972.2,2970.4,0.1754]
[1763441590356,2.87398586,2971.5,2970.4,0.1754]
[1763441590557,2.87398586,2971.5,2969.6,0.1754]
[1763441590952,2.86894182,2971.0,2969.6,0.1754]
[1763441591156,2.86894182,2970.5,2969.6,0.00366337]
[1763441592054,2.86894182,2971.0,2969.6,0.00366337]
[1763441592253,1.17372994,2971.5,2969.6,0.00366337]
[1763441592456,0.96770737,2971.3,2969.6,0.00366337]
[1763441592661,0.00504404,2971.5,2969.6,0.00366337]
[1763441593861,0.00504404,2971.5,2970.9,0.1754]
[1763441594063,0.00335951,2972.2,2970.9,0.1754]
[1763441594563,2.86894182,2972.1,2970.0,0.1754]
[1763441594762,2.86894182,2971.6,2970.0,0.1754]
[1763441594956,2.86894182,2971.1,2970.0,0.1754]
[1763441595159,2.86894182,2970.6,2969.6,0.00366337]
[1763441595552,2.87398586,2970.8,2969.6,0.00366337]
[1763441596253,0.00504404,2970.8,2969.6,0.00366337]
[1763441596451,1.72714215,2972.2,2969.6,0.00366337]
[1763441596452,2.87230133,2972.2,2970.0,0.1754]
[1763441596658,2.86894182,2971.7,2970.0,0.1754]
[1763441597552,0.00504404,2971.1,2970.6,0.00504404]
[1763441597749,2.87398586,2971.1,2970.0,0.1754]
[1763441599051,2.87398586,2971.1,2969.6,0.00366337]
[1763441599455,0.00504404,2971.1,2969.6,0.00366337]
[1763441599956,2.86894182,2970.6,2969.6,0.00366337]
[1763441600359,2.87398586,2971.1,2969.6,0.00366337]
[1763441600961,2.86894182,2970.8,2969.6,0.00366337]
[1763441601755,0.00504404,2971.1,2969.6,0.00366337]
[1763441604166,0.00504404,2971.1,2970.9,0.161]
[1763441604670,0.00504404,2971.1,2970.0,0.161]
[1763441605872,0.00504404,2971.1,2970.9,0.161]
[1763441606865,0.00504404,2971.1,2970.0,0.161]
[1763441608670,2.34143396,2972.1,2970.0,0.161]
[1763441608671,1.72378264,2972.0,2970.9,0.1512]
[1763441608875,0.78394009,2971.9,2970.9,0.1512]
[1763441609171,0.00335951,2972.2,2970.9,0.1512]
[1763441609563,0.78834825,2972.2,2970.9,0.1512]
[1763441609769,0.78498874,2972.1,2970.9,0.1512]
[1763441609978,0.00335951,2972.2,2970.9,0.1512]
[1763441609979,0.00504404,2971.8,2971.2,0.00504404]
[1763441610367,1.1686859,2971.6,2970.0,0.161]
[1763441610573,1.95367464,2971.5,2970.0,0.161]
[1763441610776,1.1686859,2971.3,2970.0,0.161]
[1763441610978,1.1686859,2970.7,2970.0,0.161]
[1763441611677,1.1686859,2970.6,2970.0,0.161]
[1763441611972,0.78498874,2970.5,2970.0,0.161]
[1763441612167,1.1686859,2971.0,2970.0,0.161]
[1763441612364,1.1686859,2970.8,2970.0,0.161]
[1763441613372,0.3574859,2970.7,2970.0,0.161]
[1763441613578,2.34143396,2971.6,2970.0,0.161]
[1763441613778,0.16714404,2971.8,2969.6,0.00366337]
[1763441614073,2.508578,2971.8,2969.6,0.00366337]
[1763441614282,2.34143396,2971.3,2969.6,0.00366337]
[1763441614679,2.34143396,2971.2,2969.6,0.00366337]
[1763441615578,2.34143396,2971.7,2969.6,0.00366337]
[1763441616471,2.34143396,2971.5,2969.6,0.00366337]
[1763441617976,2.34143396,2971.2,2969.6,0.00366337]
[1763441619077,6.60608744,2971.8,2969.6,0.00366337]
[1763441619279,2.508578,2971.8,2969.6,0.00366337]
[1763441619473,0.16714404,2971.8,2969.8,2.86894182]
[1763441619775,0.16714404,2971.8,2969.9,3.79592189]
[1763441620374,0.16714404,2971.8,2969.8,2.86894182]
[1763441620675,0.16714404,2971.8,2969.9,3.84539718]
[1763441621272,0.16714404,2971.8,2969.8,2.39621323]
[1763441621675,2.508578,2971.8,2969.8,2.39621323]
[1763441622480,2.34143396,2971.7,2969.8,2.39621323]
[1763441622787,2.508578,2971.8,2969.8,2.39621323]
[1763441623087,0.16714404,2971.8,2969.9,3.67683094]
[1763441623282,0.16714404,2971.8,2969.7,2.39621323]
[1763441623689,0.16714404,2971.8,2969.7,5.90643448]
[1763441623982,0.16714404,2971.8,2970.2,2.39621323]
[1763441625181,0.16714404,2971.8,2969.6,0.00366337]
[1763441625588,0.94758359,2971.8,2969.9,2.39621323]
[1763441625889,0.78043955,2971.7,2970.0,3.54330483]
[1763441626094,0.78043955,2971.6,2970.0,3.54330483]
[1763441626285,0.78043955,2971.5,2969.9,2.39621323]
[1763441626487,0.78043955,2971.4,2969.9,2.39621323]
[1763441626782,0.78043955,2971.3,2969.9,2.39621323]
[1763441626980,0.78043955,2971.2,2969.9,2.39621323]
[1763441627181,0.16714404,2971.8,2969.9,2.39621323]
[1763441627386,0.16714404,2971.8,2970.0,3.51716512]
[1763441627893,0.16714404,2971.8,2969.6,0.00366337]
[1763441628191,0.94763629,2971.8,2969.6,0.00366337]
[1763441628580,0.16714404,2971.8,2969.6,0.00366337]
[1763441628784,0.16714404,2971.8,2970.0,1.79721229]
[1763441629388,0.16714404,2971.8,2969.6,0.00366337]
[1763441629389,0.16714404,2971.8,2970.4,1.79721229]
[1763441629587,0.16714404,2971.8,2970.8,1.79721229]
[1763441629791,0.16714404,2971.8,2970.4,1.79721229]
[1763441630095,0.16714404,2971.8,2970.8,1.79721229]
[1763441631190,0.16714404,2971.8,2969.9,10.324]
[1763441631191,0.00504404,2971.8,2971.2,1.79721229]
[1763441631393,0.00335951,2972.2,2971.2,1.79721229]
[1763441631992,0.00335951,2972.2,2970.0,9.76865878]
[1763441631993,0.00335951,2972.2,2972.0,1.79721229]
[1763441632199,0.78049225,2972.8,2972.0,1.79721229]
[1763441632390,0.00504404,2972.7,2972.1,0.00504404]
[1763441633199,0.00860933,2972.7,2972.1,0.0083165]
[1763441633494,6.0,2972.6,2971.2,10.324]
[1763441633695,0.78031171,2972.5,2970.8,1.79721229]
[1763441633885,0.78031171,2972.4,2970.8,1.79721229]
[1763441634085,0.78031171,2972.3,2970.8,1.79721229]
[1763441634285,0.78031171,2972.2,2970.8,1.79721229]
[1763441634493,0.1621,2972.0,2970.8,1.79721229]
[1763441634691,0.1621,2972.0,2970.8,1.80125605]
[1763441635093,0.1621,2972.0,2970.8,0.00404376]
[1763441635595,1.95931229,2972.0,2970.8,0.00404376]
[1763441635789,0.78031171,2971.9,2970.8,0.00404376]
[1763441635991,0.1621,2971.2,2970.8,0.00404376]
[1763441636194,0.1621,2971.2,2969.9,10.324]
[1763441636392,0.00504404,2970.8,2969.3,1.79721229]
[1763441637095,0.00504404,2970.8,2969.3,1.80020247]
[1763441638197,0.78535575,2970.8,2969.3,0.00299018]
[1763441638396,0.78031171,2970.7,2969.3,0.00299018]
[1763441638593,0.00504404,2970.8,2969.3,1.80020247]
[1763441638891,0.00504404,2970.8,2969.7,1.79721229]
[1763441639096,0.00504404,2970.8,2969.3,0.00299018]
[1763441640199,1.79721229,2970.7,2969.3,0.00299018]
[1763441640492,0.77444526,2970.6,2969.3,0.00299018]
[1763441640792,1.79721229,2970.3,2969.3,0.00299018]
[1763441640996,0.00504404,2970.8,2970.0,1.79721229]
[1763441641197,0.77410638,2971.6,2970.4,1.79721229]
[1763441641500,0.77410638,2971.6,2969.5,2.3808283]
[1763441641501,1.79721229,2971.9,2970.0,1.79721229]
[1763441641703,0.77455075,2971.8,2970.4,1.79721229]
[1763441641997,0.1621,2972.0,2970.6,1.79721229]
[1763441642199,0.00504404,2971.6,2971.0,0.00504404]
[1763441642894,0.00339204,2972.0,2971.0,0.00504404]
[1763441643193,0.16349204,2972.0,2971.0,0.00504404]
[1763441643597,0.00339204,2972.0,2971.1,3.63419873]
[1763441643800,0.1601,2973.6,2971.8,2.39532528]
[1763441644102,0.00504404,2973.0,2971.8,2.39532528]
[1763441644301,0.00504404,2973.0,2972.3,2.39532528]
[1763441644502,0.00504404,2973.0,2971.9,3.79980835]
[1763441644697,0.00855781,2973.0,2971.9,0.00419712]
[1763441645002,0.00855781,2973.0,2971.9,0.28419374]
[1763441645301,0.00855781,2973.0,2971.9,0.00419712]
[1763441646794,0.00855781,2973.0,2972.3,2.39532528]
[1763441646995,0.1601,2973.6,2972.3,2.39532528]
[1763441647195,0.1601,2974.4,2972.4,3.78107629]
[1763441647404,0.1601,2974.4,2972.3,2.39532528]
[1763441647894,0.16285671,2974.4,2973.1,0.00504404]
[1763441648100,0.00504404,2973.6,2973.1,0.00504404]
[1763441648802,0.16514404,2973.6,2973.1,0.00504404]
[1763441649397,0.00504404,2973.6,2973.1,0.00504404]
[1763441649600,0.16514404,2973.6,2973.1,0.00504404]
[1763441649800,0.16514404,2973.6,2971.9,0.00419712]
[1763441650501,2.56046932,2973.6,2971.9,0.00419712]
[1763441650701,0.77538972,2973.5,2971.9,0.00419712]
[1763441650892,0.1601,2972.8,2971.9,0.00419712]
[1763441651998,0.1601,2972.8,2972.1,0.00504404]
[1763441652400,0.16514404,2973.6,2972.1,2.40036932]
[1763441652600,0.16514404,2973.6,2972.2,3.74739834]
[1763441652905,0.16514404,2973.6,2972.1,2.40036932]
[1763441653301,0.00504404,2973.6,2972.2,3.87229506]
[1763441654503,0.00504404,2973.6,2972.6,2.39532528]
[1763441655196,0.16514404,2973.6,2972.6,2.39532528]
[1763441655402,0.16514404,2973.6,2972.1,2.40036932]
[1763441656002,0.00504404,2973.6,2972.6,2.39532528]
[1763441656600,0.16514404,2973.6,2972.3,2.39532528]
[1763441656801,0.16285671,2974.4,2972.8,2.39532528]
[1763441657010,1.1767149,2975.9,2973.8,2.39532528]
[1763441657212,0.1601,2976.0,2974.4,2.39532528]
[1763441658007,0.00504404,2975.5,2974.9,0.00504404]
[1763441658411,0.00331032,2976.0,2975.0,3.74675231]
[1763441659009,0.15261032,2976.0,2974.9,2.40036932]
[1763441659205,0.15261032,2976.0,2974.9,0.00504404]
[1763441659406,0.00504404,2975.7,2974.9,0.00504404]
[1763441660216,0.1601,2976.8,2975.1,2.39532528]
[1763441660509,0.1601,2976.8,2975.6,2.39532528]
[1763441660816,0.1601,2976.8,2975.6,2.66838295]
[1763441661216,0.00504404,2976.5,2975.6,2.66838295]
[1763441661511,0.00504404,2976.5,2975.1,2.39532528]
[1763441661715,0.16418485,2976.8,2975.6,2.39532528]
[1763441661716,0.00408485,2976.8,2975.6,2.39532528]
[1763441661918,0.1493,2978.4,2976.2,2.39532528]
[1763441662219,0.1493,2978.4,2975.7,6.12323282]
[1763441662416,0.1493,2978.4,2975.7,2.39532528]
[1763441662710,0.00504404,2976.9,2976.4,0.00504404]
[1763441662916,0.0083114,2976.9,2976.4,0.00504404]
[1763441663914,0.1493,2978.4,2976.4,0.00504404]
[1763441664719,0.1493,2978.4,2976.5,3.65346002]
[1763441664921,0.00336275,2977.3,2976.5,0.00335316]
[1763441666615,0.1493,2976.8,2976.5,0.00335316]
[1763441667120,0.00336275,2977.3,2976.5,0.00335316]
[1763441668514,0.00336275,2977.3,2976.6,3.50742799]
[1763441668919,0.00336275,2977.3,2976.5,0.00335316]
[1763441668920,0.00336275,2977.3,2976.7,1.7892218]
[1763441669326,0.00298822,2977.6,2976.7,1.7892218]
[1763441669526,0.14988822,2977.6,2976.5,1.79257496]
[1763441670030,0.00298822,2977.6,2977.1,1.7892218]
[1763441670520,0.00298822,2977.6,2976.5,0.00335316]
[1763441670718,0.00298822,2977.6,2976.8,1.7892218]
[1763441671421,0.1493,2979.2,2977.2,1.7892218]
[1763441671722,0.1493,2979.2,2976.8,0.075]
[1763441671723,0.1493,2979.2,2977.9,0.00504404]
[1763441672425,0.1469,2980.0,2977.9,0.00504404]
[1763441672426,0.1469,2980.0,2979.1,1.7892218]
[1763441672913,0.1469,2981.3,2979.5,1.7892218]
[1763441673120,0.1469,2981.3,2979.9,0.00503533]
[1763441673430,0.1469,2980.0,2979.9,0.00859447]
[1763441673623,6.1469,2980.0,2979.9,0.00859447]
[1763441674222,0.1469,2980.0,2979.9,0.00859447]
[1763441674620,0.14998753,2980.8,2979.9,0.00859447]
[1763441675235,0.00308753,2980.8,2980.1,2.38090836]
[1763441675417,0.00308753,2980.8,2979.9,0.00859447]
[1763441675418,0.1469,2981.3,2980.6,2.38090836]
[1763441676423,0.15009681,2981.3,2980.6,2.38090836]
[1763441676622,0.15009681,2981.3,2980.1,2.38090836]
[1763441677522,0.15009681,2981.3,2979.9,0.00859447]
[1763441678627,0.15009681,2981.3,2980.1,2.38090836]
[1763441679429,0.15009681,2981.3,2980.6,2.38090836]
[1763441679735,0.1469,2982.4,2981.1,2.38090836]
[1763441680026,0.1469,2982.4,2981.5,0.00503533]
[1763441680632,0.15096581,2982.4,2981.5,0.00503533]
[1763441681721,0.00406581,2982.4,2981.8,2.85369004]
[1763441682033,0.1469,2983.2,2981.9,3.73190916]
[1763441682234,0.1469,2983.2,2982.5,2.85369004]
[1763441682932,0.15038235,2983.2,2982.5,0.00260127]
[1763441684934,0.1469,2984.0,2983.1,2.85369004]
[1763441685133,0.1469,2985.6,2983.1,2.85369004]
[1763441685327,0.1469,2985.6,2983.3,0.00503533]
[1763441685522,0.1469,2985.6,2983.7,2.85369004]
[1763441685934,0.14931763,2984.8,2983.7,2.85369004]
[1763441686730,0.14931763,2984.8,2983.3,0.00503533]
[1763441686926,0.1469,2983.5,2983.3,0.00503533]
[1763441687127,0.1469,2983.5,2982.2,2.85369004]
[1763441688022,0.14931763,2984.8,2982.9,2.85369004]
[1763441688233,0.00497757,2984.1,2983.6,0.00502673]
[1763441689836,0.00497757,2984.1,2982.4,2.85369004]
[1763441690638,0.00497757,2984.1,2981.8,2.85369004]
[1763441690834,0.1469,2983.5,2983.0,0.00502673]
[1763441691033,0.1469,2983.5,2983.0,2.673e-05]
[1763441691430,6.1469,2983.5,2983.0,2.673e-05]
[1763441691636,0.1469,2983.5,2983.0,2.673e-05]